Cogmind - Beta 13 @@@ ROGUE MODE // 2024.05.31 @ 21:54:08 Player: wojo Result: Destroyed by D-53 Grenadier with Mini Grenade Launcher Performance ------------- Evolutions (0) 0 Regions Visited (2) 400 Robots Destroyed (1) 5 Value Destroyed (34) 34 Prototype IDs (2) 40 Alien Tech Used (0) 0 Bonus (0) 0 TOTAL SCORE: 479 Bonus ------- None Cogmind --------- Core Integrity 0/250 Matter 300/300 Energy 92/100 System Corruption 0% Temperature Cool (0) Movement Treading (240) Ox1 Location -10/Mines Parts ------- > --- POWER (1) -------- (None) > --- PROPULSION (2) --- Light Treads > --- UTILITY (2) ------ Heat Sink Large Storage Unit > --- WEAPON (2) ------- Medium Laser > --- INVENTORY (15) --- Ion Engine Light Treads Heat Sink Power Shielding Utility Shielding Light Armor Plating Small Laser Small Laser Small Laser Datajack Mining Laser Peak State ------------ > --- POWER ------------ Light Ion Engine > --- PROPULSION ------- Light Treads Light Treads > --- UTILITY ---------- Heat Sink Large Storage Unit > --- WEAPON ----------- Medium Laser Datajack > --- INVENTORY -------- Light Treads Heat Sink Power Shielding Utility Shielding Light Armor Plating Small Laser Small Laser Small Laser Light Assault Rifle Mining Laser [Rating: 8] Favorites ----------- Power Light Ion Engine Engine Light Ion Engine Propulsion Light Treads Treads Light Treads Utility Large Storage Unit Device Heat Sink Storage Large Storage Unit Weapon Medium Laser Energy Gun Medium Laser Ballistic Gun Light Assault Rifle Special Melee Weapon Datajack Build | -11 -10 -10 ------- Run | Yrd Mat Min Slots Evolved . | . . . Power . | . . . Propulsion . | . . . Utility . | . . . Weapon . | . . . Parts Attached 15 | 7 1 7 Power 2 | 1 . 1 Engine 2 | 1 . 1 Core . | . . . Reactor . | . . . Propulsion 4 | 2 . 2 Treads 4 | 2 . 2 Leg . | . . . Wheel . | . . . Hover . | . . . Flight . | . . . Utility 3 | 1 1 1 Device 1 | . . 1 Storage 2 | 1 1 . Processor . | . . . Hackware . | . . . Protection . | . . . Artifact . | . . . Weapon 6 | 3 . 3 Energy Gun 3 | 2 . 1 Energy Cannon . | . . . Ballistic Gun 2 | 1 . 1 Ballistic Cannon . | . . . Launcher . | . . . Special Weapon . | . . . Impact Weapon . | . . . Slashing Weapon . | . . . Piercing Weapon . | . . . Special Melee Weapon 1 | . . 1 Unidentified Prototypes . | . . . Parts Lost 8 | . 4 4 Power 2 | . 1 1 Propulsion 3 | . 1 2 Utility . | . . . Weapon 3 | . 2 1 Highest Loss Streak 4 | . 4 4 To Critical Strikes . | . . . Average Slot Usage (%) 84 | . 82 86 Engine 11 | . 13 10 Treads 25 | . 25 25 Device 5 | . . 10 Storage 14 | . 14 14 Energy Gun 13 | . 14 12 Ballistic Gun 12 | . 14 10 Naked Turns . | . . . Heaviest Build 27 | 11 26 27 Greatest Support 40 | 40 40 40 Greatest Overweight (x) 1 | 1 1 1 Average Overweight (x) . | . . . Largest Inventory Capacity 15 | 8 15 15 Average Capacity 12 | 7 12 15 Most Carried 12 | 2 2 12 Average Carried 4 | 1 2 9 Final Capacity 15 | 8 15 15 Final Carried 11 | 2 2 11 Class Distribution -------------------- 100% | Mutant Dominant Class ---------------- Mutant | -10/Materials Mutant | -10/Mines Resources | -11 -10 -10 ----------- Run | Yrd Mat Min Matter Collected 321 | 187 34 100 Remotely . | . . . Salvage Created 54 | . 34 20 Parts 2 | . 2 . Haulers Intercepted . | . . . Recyclers Shooed . | . . . Parts Field Recycled . | . . . Retrieved Matter . | . . . Parts Self-Destructed . | . . . Prevented . | . . . Kills | -11 -10 -10 ------- Run | Yrd Mat Min Combat Hostiles Destroyed 2 | . 1 1 Guns 2 | . 1 1 Classes Destroyed 2 | . 1 1 Grunt 1 | . 1 . Assembled 1 | . . 1 Best Kill Streak 1 | . 1 1 Combat Bots Only 1 | . 1 1 Max Kills in Single Turn 1 | . 1 1 Gunslinging . | . . . Exploded . | . . . Melee . | . . . Uniques/NPCs Destroyed . | . . . Combat | -11 -10 -10 -------- Run | Yrd Mat Min Hostile Shots Fired 92 | . 58 34 Missed 24 | . 15 9 Damage Taken 1207 | . 561 646 Core 268 | . 84 184 Absorbed by Shields . | . . . Core Remaining (%) 100 | 100 . . Volleys Fired 15 | . 6 9 Largest 2 | . 2 2 Hottest 70 | . 70 70 Shots Fired 24 | . 11 13 Gun 24 | . 11 13 Cannon . | . . . Launcher . | . . . Special . | . . . Kinetic 13 | . 6 7 Thermal 11 | . 5 6 Explosive . | . . . Electromagnetic . | . . . Robot Hit Streak 4 | . 2 4 Robot Miss Streak 3 | . 3 2 Penetration Max . | . . . Secondary Targets 1 | . . 1 Max Gunslinging Chain 1 | . . 1 Shots Hit Robots 14 | . 4 10 Core Hits 10 | 1 4 5 Critical Kills . | . . . Critical Parts Destroyed . | . . . Critical Strikes . | . . . Melee Attacks 1 | . . 1 Impact . | . . . Slashing . | . . . Piercing . | . . . Sneak Attacks 1 | . . 1 Combat Hostiles . | . . . Follow-up Attacks . | . . . Damage Inflicted 142 | 1 48 93 Guns 141 | . 48 93 Cannons . | . . . Explosions . | . . . Melee . | . . . Ramming 1 | 1 . . Kinetic 55 | . 24 31 Thermal 86 | . 24 62 Explosive . | . . . Electromagnetic . | . . . Impact . | . . . Slashing . | . . . Piercing . | . . . Highest Corruption . | . . . Average Corruption . | . . . Corruption Purged . | . . . Corruption Blocked . | . . . Overload Shots . | . . . Overflow Damage . | . . . Projectiles . | . . . Explosions . | . . . Melee . | . . . Knockbacks . | . . . Impact . | . . . Kinetic . | . . . Secondary . | . . . Self-Inflicted Damage . | . . . Shots . | . . . Rammed 1 | 1 . . Targets Rammed 1 | 1 . . Kicked . | . . . Crushed . | . . . Highest Temperature 70 | . 70 20 Average Temperature 21 | . 26 10 Received Heat Transfer 376 | . 336 40 Siege Activations . | . . . Robots Corrupted . | . . . Combat Hostiles . | . . . Parts Fried . | . . . Impact Corruptions . | . . . Robots Melted . | . . . Combat Hostiles . | . . . Parts Melted . | . . . Heat Transferred 259 | . 74 185 Parts Sabotaged . | . . . Parts Stolen . | . . . Parts Stripped . | . . . Power Chain Reactions . | . . . Alert | -11 -10 -10 ------- Run | Yrd Mat Min Peak Influence 91 | . 91 27 Initial 27 | . . 27 Average 41 | . 70 26 Maximum Alert Level . | . . . Low Security (%) 100 | 100 100 100 Level 1 . | . . . Level 2 . | . . . Level 3 . | . . . Level 4 . | . . . Level 5 . | . . . High Security . | . . . Max Security . | . . . Squads Dispatched 3 | . 3 . Investigation 2 | . 2 . Extermination . | . . . Reinforcement 1 | . 1 . Assault . | . . . Garrison . | . . . Intercept . | . . . Searches Triggered . | . . . Construction Impeded . | . . . Haulers Reinforced . | . . . Active Scanning Responses . | . . . Cargo Convoy Interrupts . | . . . Stealth | -11 -10 -10 --------- Run | Yrd Mat Min Distress Signals . | . . . Communications Jammed . | . . . Distress Signals . | . . . Times Spotted 31 | . 13 18 Peak Tracking Total 10 | . 7 10 Tactical Retreats . | . . . Traps | -11 -10 -10 ------- Run | Yrd Mat Min Traps Triggered 1 | . 1 . Indirectly . | . . . Trap Hack Attempts . | . . . Triggered . | . . . Disarmed . | . . . Reprogrammed . | . . . Reused . | . . . Traps Extracted . | . . . Installed . | . . . Triggered . | . . . Machines | -11 -10 -10 ---------- Run | Yrd Mat Min Machines Disabled . | . . . Max in Single Turn . | . . . Machines Repaired . | . . . Machines Dismantled . | . . . Machines Sabotaged . | . . . Overloaded Fab Kills . | . . . Hacking | -11 -10 -10 --------- Run | Yrd Mat Min Machines Accessed 2 | . 2 . Terminals 2 | . 2 . Fabricators . | . . . Repair Stations . | . . . Recycling Units . | . . . Scanalyzers . | . . . Garrison Access . | . . . Total Hacks 10 | . 10 . Successful 4 | . 4 . Failed 6 | . 6 . Catastrophic . | . . . Database Lockouts . | . . . Manual . | . . . Terminals 10 | . 10 . Fabricators . | . . . Repair Stations . | . . . Recycling Units . | . . . Scanalyzers . | . . . Garrison Access . | . . . Terminal Hacks 4 | . 4 . Record 2 | . 2 . Prototype ID Bank 1 | . 1 . Zone Layout 1 | . 1 . Fabricator Hacks . | . . . Repair Station Hacks . | . . . Recycling Unit Hacks . | . . . Scanalyzer . | . . . Garrison Access Hacks . | . . . Unauthorized Hacks . | . . . Terminals . | . . . Fabricators . | . . . Repair Stations . | . . . Recycling Units . | . . . Scanalyzers . | . . . Garrison Access . | . . . Data Cores Recovered . | . . . Used . | . . . Hacking Detections 2 | . 2 . Full Trace Events 2 | . 2 . Feedback Events . | . . . Feedback Blocked . | . . . Robot Schematics Acquired . | . . . Robots Built . | . . . Authchips . | . . . Time . | . . . Total Robot Build Rating . | . . . Part Schematics Acquired . | . . . Parts Built . | . . . Authchips . | . . . Time . | . . . Total Part Build Rating . | . . . Parts Repaired . | . . . Time . | . . . Parts Recycled . | . . . Recycled Matter . | . . . Retrieved Matter . | . . . Retrieved Components . | . . . Parts Scanalyzed . | . . . Part Schematics Acquired . | . . . Parts Damaged . | . . . Bothacking | -11 -10 -10 ------------ Run | Yrd Mat Min Used RIF Installer . | . . . Robots Hacked . | . . . Non-combat . | . . . Combat . | . . . Robot Hacks Applied . | . . . Relay Couplers Released . | . . . Fabnet Peak Effective % . | . . . Robots Rewired . | . . . Allies Hacked . | . . . Hacks Repelled . | . . . Allies | -11 -10 -10 -------- Run | Yrd Mat Min Total Allies . | . . . Largest Group . | . . . Highest-Rated Group . | . . . Highest-Rated Ally . | . . . Total Orders . | . . . Ally Attacks . | . . . Total Damage . | . . . Kills . | . . . Allies Corrupted . | . . . Allies Melted . | . . . Intel | -11 -10 -10 ------- Run | Yrd Mat Min Robot Analysis Total . | . . . Derelict Logs Recovered . | . . . Drone Launches . | . . . Drone Recoveries . | . . . Exploration | -11 -10 -10 ------------- Run | Yrd Mat Min Turns Passed 780 | 113 340 327 Spaces Moved 430 | 66 187 177 Core 6 | 6 . . Treads 424 | 60 187 177 Legs . | . . . Wheels . | . . . Hover . | . . . Flight . | . . . Fastest Speed 50 | 50 160 160 Average Speed 162 | 151 168 160 Slowest Speed 240 | 160 240 240 Overloaded Moves . | . . . Propulsion Burnouts . | . . . Robots Hopped . | . . . Cave-ins Triggered . | . . . Exploration Rate (%) 26 | 6 36 37 Regions Visited 2 Branch Regions 1 Pre-discovered Areas . | . . . Known Exits Taken . | . . . Unknown Exits Taken 2 | 1 1 . Scrap Searched 1 | . . 1 Spaces Dug . | . . . Terrain Destroyed . | . . . Melee . | . . . Projectile . | . . . AOE . | . . . Terrain Rammed . | . . . Walls Destroyed . | . . . Machines Disabled . | . . . Actions | -11 -10 -10 --------- Run | Yrd Mat Min Total 483 | 75 203 205 Wait 9 | . 9 . Move 428 | 65 186 177 Hop . | . . . Pick Up 13 | 2 . 11 Fast Attach 11 | 6 1 4 Attach 2 | . . 2 Detach . | . . . Swap 2 | 1 . 1 Drop 1 | . 1 . Fire 15 | . 6 9 Melee 1 | . . 1 Ram . | . . . Kick . | . . . Crush 1 | 1 . . Escape Stasis . | . . . Rewire . | . . . Trap . | . . . Miscellaneous . | . . . Route ------- -11/Scrapyard -10/Materials (discovered 3 exits: [*Mat] / [*Min x2]) -10/Mines (discovered 1 exit: [*Mat]) History --------- Turn | Location | Event 12 | -11/Scrapyard | Discovered new exit (range 15) 114 | -11/Scrapyard | Entered Materials 119 | -10/Materials | Discovered new exit (range 16) 282 | -10/Materials | Discovered new exit (range 16) 317 | -10/Materials | Build established: Mutant 435 | -10/Materials | Discovered new exit (range 8) 454 | -10/Materials | Entered Mines 462 | -10/Mines | Joined a pair of Derelicts in attacking an 0b10 outpost 483 | -10/Mines | Lost 4 parts (1p1n2w) 586 | -10/Mines | Discovered new exit (range 9) 734 | -10/Mines | Assembled infested the area 739 | -10/Mines | Assisted by a Guerilla fighting off Assembled 774 | -10/Mines | Core integrity fell below 50% 780 | -10/Mines | Core integrity fell below 20% 781 | -10/Mines | Destroyed by D-53 Grenadier with Mini Grenade Launcher Last Messages --------------- as-98354 destroyed. 5G-U0N(h) destroyed. C-30 ARC bursts open, deploying its payload. as-05530 destroyed. as-06845 destroyed. Lgt. Treads destroyed. as-61795 destroyed. as-21368 destroyed. R-06 Scavenger destroyed. as-65271 destroyed. as-29701 destroyed. as-58735 destroyed. Lgt. Assault Rifle destroyed. as-07218 destroyed. Acquired Lgt. Treads. as-00095 destroyed. K-01 Serf collects debris. Lgt. Ion Engine destroyed. Lgt. Treads destroyed. K-01 Serf collects debris. Map ----- +----------------------------------------------------+ | ?????????????????????????????????????????????????? | | ?????????????????????????????????????????????????? | | ?????????????????????????????????????????????????? | | ?????????????????????????????????????????????????? | | ?????????????????????????????????????????????????? | | ?????????????????????????????????????????????????? | | ?????????????????????????????????????????????????? | | ?????????????????????????????????????????????????? | | ?????????????????????????????????????????????????? | | ???????????????????????? ??????????????????????? | | ???????????????????????? % ????????????????????? | | ???????????????????????? ?????????????????? | | ??????????????????????# % a ?????????????????? | | ??????????????????????;#% * ?????????????????? | | ??????????????????????#; =% ??????????????????? | | ????????????????????### % ??????????????????? | | ???????????????????## #??????????????????? | | ??????????????????## #??????????????????? | | ???????????? ????## ##?????????????????? | | ??????????? ??## ##????????????????? | | ?????????? ## ##???????????????? | | ?????????? ###### ?????????? | | ????????? ?????????? | | ????????????? ] ??????????? | | ???????????????????# #???????????????? | | ???????????????????# @ #???????????????????? | | ???????????????????## #??????????????????? | | ????????????????????# d #??????????????????? | | ????????????????????## d ##??????????????????? | | ?????????????????????# ##???????????????????? | | ?????????????????????##### ##????????????????????? | | ?????????????????????????# #???????##????????????? | | ????????????????????????##k#?????? #????????????? | | ????????????????????????# ##???? #???# ??????? | | ????????????????????????# ##??? #?? ??????? | | ????????????????????????## ##?# ## ?????? | | ?????????????????????????# ## ?????? | | ?????????????????????????## ?????? | | ??????????????????????????## ?????? | | ?????????????###??????????## ## ???????? | | ????????????## #?????##### ### ##?????????? | | ????????????# #???## ##????#??????????? | | ????????????# #?## #????????????????? | | ????????????# ## ##???????????????? | | ?????????????# #???????????????? | | ?????????????### #???????????????? | | ???????????????## #???????????????? | | ????????????????# ## # #???????????????? | | ????????????????## #### ## ]#####???????????? | | ?????????????????####??## #### !%% #???????????? | +----------------------------------------------------+ Best States ------------- Heat Dissipation 35 Energy Generation 10 Energy Capacity 125 Matter Stores 300 Matter Capacity 300 Sight Range 16 Terrain Scan Density 10 Evasion (%) 40 Recoil Reduction 2 Item Schematics ----------------- None Robot Schematics ------------------ None Fabricated ------------ Nothing Alien Tech Used ----------------- None Achievements -------------- None Challenges ------------ None Game ------ Seed HoverEncryptedChronowheel Manual? 0 Play Time 00:08:09 Cumulative 4.7 hours Start 2024.05.31 @ 21:46:30 End 2024.05.31 @ 21:54:08 Sessions 1 Manual Loads 0 Difficulty Rogue Special Mode None Game No. 5 Rogue 5 Adventurer 0 Explorer 0 Win Type - Total 0 Types 0/0/0/0/0/0/0/0/0 Lore% 5 Gallery% 10 Achievement% 11 Wizard Run 0 Options --------- Layout 1 ASCII 0 Keyboard 0 Movement Arrows Keybinds 0 Fullscreen 1 Font 16/SmallcapsGlow Map View 50x40 Zoom Use 0% Tactical HUD 0 Map Filters NONE Filters NONE Steam SD RUN: ea3c384c-bb6c-4318-8bc8-dbdfc4d5912c